fUSD/lending_fUSD_20251226
["ID","MTS","AMOUNT","RATE_DAILY","PERIOD"]
[399846627,1766735441187,-500.0,0.00016438,2]
[399846628,1766735441197,-500.0,0.00016438,2]
[399846629,1766735441207,-500.0,0.00016438,2]
[399846630,1766735441216,-500.0,0.00016438,2]
[399846631,1766735441226,-500.0,0.00016438,2]
[399846632,1766735441236,-500.0,0.00016438,2]
[399846633,1766735441247,-500.0,0.00016438,2]
[399846634,1766735441257,-500.0,0.00016438,2]
[399846635,1766735441267,-500.0,0.00016438,2]
[399846636,1766735441278,-544.23565415,0.00016438,2]
[399846637,1766735441289,-500.0,0.00016438,2]
[399846638,1766735441300,-500.0,0.00016438,2]
[399846639,1766735441310,-500.0,0.00016438,2]
[399846640,1766735441320,-500.0,0.00016438,2]
[399846641,1766735441331,-500.0,0.00016438,2]
[399846642,1766735441341,-500.0,0.00016438,2]
[399846643,1766735441351,-500.0,0.00016438,2]
[399846644,1766735441361,-500.0,0.00016438,2]
[399846645,1766735441371,-500.0,0.00016438,2]
[399846646,1766735441382,-500.0,0.00016438,2]
[399846647,1766735441391,-500.0,0.00016438,2]
[399846648,1766735441404,-500.0,0.00016438,2]
[399846649,1766735441416,-500.0,0.00016438,2]
[399846650,1766735441426,-500.0,0.00016438,2]
[399846651,1766735441437,-500.0,0.00016438,2]
[399846652,1766735441446,-500.0,0.00016438,2]
[399846653,1766735441456,-300.0,0.00016509,2]
[399846654,1766735441466,-1200.0,0.00016635,2]
[399846655,1766735441476,-1000.0,0.00016731,2]
[399846656,1766735441487,-511.82107275,0.00016731,2]
[399846657,1766735441497,-1000.0,0.00016731,2]
[399846658,1766735441507,-166.66,0.00016741,2]
[399846659,1766735441518,-9999.99,0.00016922,2]
[399846660,1766735441528,-4520.75561337,0.00016941,2]
[399846661,1766735441538,-168.0,0.00016966,2]
[399846662,1766735441548,-250.2,0.00017,7]
[399846663,1766735441558,-168.0,0.00017064,2]
[399846664,1766735441568,-168.0,0.00017084,2]
[399846665,1766735441578,-168.0,0.00017143,2]
[399846666,1766735441588,-168.0,0.00017186,2]
[399846667,1766735441597,-168.0,0.00017235,2]
[399846668,1766735441607,-166.66,0.00017244,2]
[399846669,1766735441616,-168.0,0.00017304,2]
[399846670,1766735441626,-258.98774802,0.00017376,2]
[399846671,1766735441636,-5000.0,0.00017386,2]
[399846672,1766735441646,-11446.12,0.00017438,2]
[399846673,1766735441657,-168.0,0.00017457,2]
[399846674,1766735441667,-168.0,0.00017509,2]
[399846675,1766735441676,-168.0,0.00017537,2]
[399846676,1766735441686,-166.66,0.00017746,2]
[399846677,1766735441696,-1000.0,0.00018082,2]
[399846678,1766735441705,-293.0,0.00018694,2]
[399846679,1766735441714,-1000.0,0.0001876,2]
[399846680,1766735441725,-1112.08,0.00019337,2]
[399846681,1766735441737,-1000.0,0.00019438,2]
[399846682,1766735441748,-1327.0,0.0001952,2]
[399846683,1766735441758,-3459.0,0.0001952,2]
[399846684,1766735441768,-612.0,0.0001952,2]
[399846685,1766735441778,-1610.0,0.0001952,2]
[399846686,1766735441789,-1263.0,0.0001952,2]
[399846687,1766735441807,-4808.0,0.0001952,2]
[399846688,1766735441822,-2430.0,0.0001952,2]
[399846689,1766735441832,-564.0,0.0001952,2]
[399846690,1766735441841,-279.92160861,0.00019662,2]
[399846691,1766735441851,-5099.0763453,0.00019662,2]
[399846692,1766735441861,-3872.14450341,0.00019662,2]
[399846693,1766735441871,-1000.0,0.00020116,2]
[399846694,1766735441882,-4520.75561337,0.0002012,2]
[399846695,1766735441892,-1299.05771041,0.00020121,2]
[399846696,1766735441903,-1000.0,0.00020795,2]
[399846697,1766735441912,-293.0,0.00020831,2]
[399846698,1766735441922,-505.78,0.00021918,30]
[399846699,1766735441933,-500.0,0.00021918,2]
[399846700,1766735441944,-500.0,0.00021918,2]
[399846701,1766735441954,-500.0,0.00021918,2]
[399846702,1766735441964,-500.0,0.00021918,2]
[399846703,1766735441974,-250.0,0.00021918,2]
[399846704,1766735441984,-193.1,0.00022,7]
[399846705,1766735441994,-1327.0,0.0002252,2]
[399846706,1766735442005,-1373.087,0.0002252,2]
[399846707,1766735442014,-612.0,0.0002252,2]
[399846708,1766735442024,-1610.0,0.0002252,2]
[399846709,1766735442035,-1263.0,0.0002252,2]
[399846710,1766735442044,-2430.0,0.0002252,2]
[399846711,1766735442054,-564.0,0.0002252,2]
[399846712,1766735442064,-293.0,0.00022968,2]
[399846713,1766735442074,-4520.75561337,0.00023298,2]
[399846714,1766735442084,-1299.05771041,0.00023301,2]
[399846715,1766735442094,-750.61,0.000245,14]
[399846716,1766735442105,-1000.0,0.00024658,2]
[399846717,1766735442115,-3732.7662,0.000247,2]
[399846718,1766735442125,-173.61225679,0.00024799,2]
[399846719,1766735442135,-19905.7323164,0.000248,3]
[399846720,1766735442145,-326059.351102,0.000249,3]
[399846721,1766735442155,-293.0,0.00025105,2]
[399846722,1766735442165,-2314.0,0.000253,2]
[399846723,1766735442175,-1327.0,0.0002552,2]
[399846724,1766735442186,-612.0,0.0002552,2]
[399846725,1766735442195,-1610.0,0.0002552,2]
[399846726,1766735442205,-1263.0,0.0002552,2]
[399846728,1766735442215,-2430.0,0.0002552,2]
[399846730,1766735442225,-564.0,0.0002552,2]
[399846732,1766735442234,-2000.0,0.000258,2]
[399846734,1766735442244,-505.78,0.00026244,30]
[399846736,1766735442254,-4520.75561337,0.00026477,2]
[399846738,1766735442263,-1299.05771041,0.0002648,2]
[399846739,1766735442274,-534.58,0.00026971,2]
[399846740,1766735442283,-293.0,0.00027242,2]
[399846741,1766735442293,-84247.3316981,0.00027397,2]
[399846742,1766735442302,-430.2,0.00027397,6]
[399846743,1766735442312,-514.7,0.00027503,2]
[399846744,1766735442321,-226.49,0.00028138,2]
[399846745,1766735442331,-1327.0,0.0002852,2]
[399846746,1766735442341,-612.0,0.0002852,2]
[399846747,1766735442351,-1610.0,0.0002852,2]
[399846748,1766735442361,-1263.0,0.0002852,2]
[399846749,1766735442370,-2430.0,0.0002852,2]
[399846750,1766735442380,-564.0,0.0002852,2]
[399846751,1766735442390,-1000.0,0.00029259,30]
[399846752,1766735442399,-293.0,0.00029379,2]
[399846753,1766735442409,-1000.0,0.00029422,30]
[399846754,1766735442422,-2000.0,0.000295,2]
[399846755,1766735442432,-4520.75561337,0.00029655,2]
[399846756,1766735442442,-1299.05771041,0.00029659,2]
[399846757,1766735442452,-167.43,0.000302,30]
[399846758,1766735442464,-505.78,0.0003057,30]
[399846759,1766735442473,-316.0,0.00030921,30]
[399846760,1766735442483,-1000.0,0.00030999,11]
[399846761,1766735442493,-625.51,0.000311,14]
[399846762,1766735442503,-312.28509841,0.00031415,2]
[399846763,1766735442511,-500.0,0.00031494,120]
[399846764,1766735442520,-84247.3316981,0.00031495,2]
[399846765,1766735442530,-293.0,0.00031515,2]
[399846766,1766735442540,-1327.0,0.0003152,2]
[399846767,1766735442549,-612.0,0.0003152,2]
[399846768,1766735442559,-1610.0,0.0003152,2]
[399846769,1766735442569,-2430.0,0.0003152,2]
[399846770,1766735442579,-564.0,0.0003152,2]
[399846771,1766735442588,-4520.75561337,0.00032834,2]
[399846772,1766735442597,-1299.05771041,0.00032838,2]
[399846773,1766735442608,-404.66015837,0.00032876,120]
[399846774,1766735442618,-500.0,0.00032876,60]
[399846775,1766735442628,-500.0,0.00032876,60]
[399846776,1766735442638,-500.0,0.00032876,60]
[399846777,1766735442648,-500.0,0.00032876,60]
[399846778,1766735442659,-500.0,0.00032876,60]
[399846779,1766735442669,-500.0,0.00032876,60]
[399846780,1766735442679,-500.0,0.00032876,60]
[399846781,1766735442688,-500.0,0.00032876,60]
[399846782,1766735442698,-500.0,0.00032876,60]
[399846783,1766735442708,-500.0,0.00032876,60]
[399846784,1766735442718,-500.0,0.00032876,60]
[399846785,1766735442728,-500.0,0.00032876,60]
[399846786,1766735442737,-500.0,0.00032876,60]
[399846787,1766735442747,-500.0,0.00032876,60]
[399846788,1766735442757,-500.0,0.00032876,60]
[399846789,1766735442768,-500.0,0.00032876,60]
[399846790,1766735442778,-500.0,0.00032876,60]
[399846791,1766735442788,-500.0,0.00032876,60]
[399846792,1766735442799,-500.0,0.00032876,60]
[399846793,1766735442808,-500.0,0.00032876,60]
[399846794,1766735442818,-598.5082316,0.00032876,60]
[399846795,1766735442828,-442.98222089,0.00032876,120]
[399846796,1766735442838,-474.61758735,0.00032876,120]
[399846797,1766735442847,-342.51958715,0.00032876,120]
[399846798,1766735442858,-206.48649483,0.00032876,120]
[399846799,1766735442868,-503.1655015,0.00032876,120]
[399846800,1766735442878,-284.11270295,0.00032876,120]
[399846801,1766735442888,-444.66686991,0.00032876,120]
[399846802,1766735442897,-196.27809104,0.00032876,120]
[399846803,1766735442908,-190.46709859,0.00032876,120]
[399846804,1766735442924,-514.36570382,0.00032876,120]
[399846805,1766735442934,-295.63715668,0.00032876,120]
[399846806,1766735442945,-405.36769074,0.00032876,120]
[399846807,1766735442956,-500.0,0.00032876,120]
[399846808,1766735442965,-500.0,0.00032876,120]
[399846809,1766735442975,-340.28398348,0.00032876,120]
[399846810,1766735442986,-500.0,0.00032877,7]
[399846811,1766735442995,-500.0,0.00032877,7]
[399846812,1766735443005,-500.0,0.00032877,7]
[399846813,1766735443014,-500.0,0.00032877,7]
[399846814,1766735443023,-500.0,0.00032877,7]
[399846815,1766735443033,-500.0,0.00032877,7]
[399846816,1766735443043,-500.0,0.00032877,7]
[399846817,1766735443052,-500.0,0.00032877,7]
[399846818,1766735443063,-500.0,0.00032877,7]
[399846819,1766735443073,-1633.51,0.000329,14]
[399846820,1766735443082,-4056.91,0.000329,14]
[399846821,1766735443091,-1000.0,0.00032999,13]
[399846822,1766735443100,-1000.0,0.00032999,23]
[399846823,1766735443110,-2000.0,0.000332,2]
[399846824,1766735443120,-293.0,0.00033652,3]
[399846825,1766735443130,-1000.0,0.00033999,24]
[399846826,1766735443140,-1633.51,0.000343,14]
[399846827,1766735443151,-4056.91,0.000343,14]
[399846828,1766735443161,-226.49,0.00034358,2]
[399846829,1766735443171,-612.0,0.0003452,2]
[399846830,1766735443181,-1610.0,0.0003452,2]
[399846831,1766735443191,-2430.0,0.0003452,2]
[399846832,1766735443201,-315.397,0.0003452,2]
[399846833,1766735443211,-505.78,0.00034895,30]
[399846834,1766735443220,-1000.0,0.00034999,25]
[399846835,1766735443230,-1000.0,0.00034999,30]
[399846836,1766735443240,-1633.51,0.000354,14]
[399846837,1766735443250,-4056.91,0.000354,14]
[399846838,1766735443260,-84247.3316981,0.00035592,2]
[399846839,1766735443271,-1000.0,0.00035615,30]
[399846840,1766735443281,-645.3,0.00035616,25]
[399846841,1766735443291,-2138.31,0.00035616,120]
[399846842,1766735443301,-293.0,0.00035789,4]
[399846843,1766735443312,-1000.0,0.00035999,16]
[399846844,1766735443322,-1000.0,0.00035999,30]
[399846845,1766735443332,-1000.0,0.00035999,26]
[399846846,1766735443341,-4520.75561337,0.00036012,2]
[399846847,1766735443351,-1299.05771041,0.00036018,2]
[399846848,1766735443361,-188.78,0.0003644,14]
[399846849,1766735443371,-1633.51,0.000365,14]
[399846850,1766735443380,-4056.91,0.000365,14]
[399846851,1766735443390,-5800.0,0.00036695,2]
[399846852,1766735443399,-5800.0,0.00036704,2]
[399846853,1766735443410,-5800.0,0.00036712,2]
[399846854,1766735443422,-2138.31,0.00036712,120]
[399846855,1766735443431,-2000.0,0.000368,2]
[399846856,1766735443441,-312.2850984,0.00036997,2]
[399846857,1766735443450,-1000.0,0.00036999,17]
[399846858,1766735443461,-1000.0,0.00036999,27]
[399846859,1766735443471,-167.43,0.000372,30]
[399846860,1766735443481,-177.93131679,0.000372,120]
[399846861,1766735443490,-1633.51,0.000373,14]
[399846862,1766735443500,-4056.91,0.000373,14]
[399846863,1766735443510,-612.0,0.0003752,2]
[399846864,1766735443519,-1610.0,0.0003752,2]
[399846865,1766735443529,-2430.0,0.0003752,2]
[399846866,1766735443539,-429.926,0.00037689,49]
[399846867,1766735443549,-2138.31,0.00037808,120]
[399846868,1766735443559,-1000.0,0.00037835,30]
[399846869,1766735443569,-1000.0,0.00037838,30]
[399846870,1766735443578,-1000.0,0.00037868,30]
[399846871,1766735443588,-177.45,0.00037889,14]
[399846872,1766735443598,-293.0,0.00037926,5]
[399846873,1766735443608,-1000.0,0.00037999,18]
[399846874,1766735443617,-1000.0,0.00037999,30]
[399846875,1766735443626,-1000.0,0.00037999,28]
[399846876,1766735443636,-1000.0,0.00037999,30]
[399846877,1766735443646,-1633.51,0.000381,14]
[399846878,1766735443658,-4056.91,0.000381,14]
[399846879,1766735443668,-150.0,0.00038219,7]
[399846880,1766735443678,-150.0,0.00038219,7]
[399846881,1766735443688,-150.0,0.00038219,7]
[399846882,1766735443698,-150.0,0.00038219,7]
[399846883,1766735443708,-150.0,0.00038219,7]
[399846884,1766735443717,-150.0,0.00038219,7]
[399846885,1766735443726,-150.0,0.00038219,7]
[399846886,1766735443736,-150.0,0.00038219,7]
[399846887,1766735443746,-152.42122212,0.00038219,7]
[399846888,1766735443756,-150.0,0.00038219,7]
[399846889,1766735443766,-150.0,0.00038376,7]
[399846890,1766735443777,-1000.0,0.00038419,30]
[399846891,1766735443787,-150.0,0.00038428,120]
[399846892,1766735443796,-150.0,0.00038534,7]
[399846893,1766735443807,-1000.0,0.00038559,30]
[399846894,1766735443817,-1000.0,0.00038559,30]
[399846895,1766735443827,-150.0,0.0003861,30]
[399846896,1766735443837,-151.17267518,0.0003861,30]
[399846897,1766735443846,-150.0,0.00038658,60]
[399846898,1766735443856,-1000.0,0.00038691,30]
[399846899,1766735443866,-150.0,0.00038691,7]
[399846900,1766735443876,-150.0,0.00038826,7]
[399846901,1766735443886,-150.0,0.00038848,7]
[399846902,1766735443896,-1633.51,0.000389,14]
[399846903,1766735443906,-4056.91,0.000389,14]
[399846904,1766735443915,-2138.31,0.00038904,120]
[399846905,1766735443925,-1000.0,0.00038989,4]
[399846906,1766735443935,-1000.0,0.00038999,29]
[399846907,1766735443945,-1000.0,0.00038999,19]
[399846908,1766735443955,-1000.0,0.00038999,30]
[399846909,1766735443965,-1000.0,0.00038999,30]
[399846910,1766735443976,-150.0,0.00039006,7]
[399846911,1766735443986,-150.0,0.00039068,7]
[399846912,1766735443996,-1000.0,0.00039119,30]
[399846913,1766735444006,-150.0,0.00039163,7]
[399846914,1766735444016,-4520.75561337,0.00039191,2]
[399846915,1766735444026,-1299.05771041,0.00039197,2]
[399846916,1766735444036,-505.78,0.00039221,120]
[399846917,1766735444046,-150.0,0.0003932,7]
[399846918,1766735444056,-286.01553425,0.00039381,2]
[399846919,1766735444066,-1000.0,0.000394,30]
[399846920,1766735444076,-150.0,0.00039432,7]
[399846921,1766735444085,-150.0,0.00039477,7]
[399846922,1766735444095,-150.0,0.00039635,7]
[399846923,1766735444105,-150.0,0.00039635,7]
[399846924,1766735444116,-150.0,0.00039635,7]
[399846925,1766735444125,-1633.51,0.000397,14]
[399846926,1766735444136,-4056.91,0.000397,14]
[399846927,1766735444145,-150.0,0.00039792,7]
[399846928,1766735444155,-150.0,0.00039918,7]
[399846929,1766735444166,-150.0,0.00039949,7]
[399846930,1766735444176,-1000.0,0.00039999,15]
[399846931,1766735444186,-1000.0,0.00039999,12]
[399846932,1766735444195,-1000.0,0.00039999,30]
[399846933,1766735444205,-1000.0,0.00039999,30]
[399846934,1766735444215,-2138.31,0.0004,120]
[399846935,1766735444224,-150.0,0.00040039,7]
[399846936,1766735444234,-293.0,0.00040063,6]
[399846937,1766735444245,-150.0,0.00040107,7]
[399846938,1766735444255,-1000.0,0.00040169,20]
[399846939,1766735444264,-150.0,0.00040264,7]
[399846940,1766735444274,-150.0,0.00040342,7]
[399846941,1766735444283,-150.0,0.00040342,7]
[399846942,1766735444293,-150.0,0.00040421,7]
[399846943,1766735444303,-1633.51,0.000405,14]
[399846944,1766735444314,-4056.91,0.000405,14]
[399846945,1766735444323,-2000.0,0.000405,2]
[399846946,1766735444333,-612.0,0.0004052,2]
[399846947,1766735444343,-1610.0,0.0004052,2]
[399846948,1766735444353,-2430.0,0.0004052,2]
[399846949,1766735444362,-150.0,0.00040563,120]
[399846950,1766735444371,-150.0,0.00040578,7]
[399846951,1766735444381,-1000.0,0.00040619,7]
[399846952,1766735444391,-150.0,0.00040646,7]
[399846953,1766735444400,-150.0,0.00040736,7]
[399846954,1766735444410,-150.0,0.00040767,7]
[399846955,1766735444422,-150.0,0.00040893,7]
[399846956,1766735444432,-670.32096566,0.00040934,7]
[399846957,1766735444442,-1000.0,0.00040999,30]
[399846958,1766735444452,-1000.0,0.00040999,30]
[399846959,1766735444464,-1000.0,0.00040999,30]
[399846960,1766735444474,-1000.0,0.00040999,21]
[399846961,1766735444486,-1000.0,0.00040999,30]
[399846962,1766735444495,-170.0,0.00041,90]
[399846963,1766735444505,-1350.2,0.00041041,7]
[399846964,1766735444514,-150.0,0.0004105,7]
[399846965,1766735444522,-150.0,0.0004105,7]
[399846966,1766735444532,-150.0,0.0004105,7]
[399846967,1766735444542,-2138.31,0.00041095,120]
[399846968,1766735444551,-1000.0,0.00041095,30]
[399846969,1766735444562,-326.89961089,0.00041096,2]
[399846970,1766735444571,-1075.5,0.00041096,108]
[399846971,1766735444581,-500.0,0.00041096,60]
[399846972,1766735444591,-500.0,0.00041123,60]
[399846973,1766735444600,-500.0,0.00041151,60]
[399846974,1766735444610,-500.0,0.00041178,60]
[399846975,1766735444620,-597.89208137,0.00041206,60]
[399846976,1766735444631,-150.0,0.00041208,30]
[399846977,1766735444641,-150.0,0.00041252,30]
[399846978,1766735444651,-150.0,0.00041365,30]
[399846979,1766735444662,-300.261543,0.0004141,106]
[399846980,1766735444671,-150.0,0.00041522,30]
[399846981,1766735444681,-150.0,0.00041616,30]
[399846982,1766735444691,-1350.2,0.0004164,7]
[399846983,1766735444701,-220.6636318,0.00041679,13]
[399846984,1766735444712,-220.66363175,0.00041679,13]
[399846985,1766735444722,-220.66363175,0.00041679,13]
[399846986,1766735444731,-220.66363175,0.00041679,13]
[399846987,1766735445000,-220.66363175,0.00041679,13]
[399846988,1766735445011,-150.0,0.00041679,30]
[399846989,1766735445023,-167.43,0.000417,30]
[399846990,1766735445034,-150.0,0.00041837,30]
[399846991,1766735445044,-150.0,0.00041859,30]
[399846992,1766735445054,-1000.0,0.00041907,14]
[399846993,1766735445064,-150.0,0.00041994,30]
[399846994,1766735445075,-1000.0,0.00041997,30]
[399846995,1766735445086,-1000.0,0.00041999,5]
[399846996,1766735445096,-1000.0,0.00041999,30]
[399846997,1766735445106,-1000.0,0.00041999,22]
[399846998,1766735445116,-1000.0,0.00041999,30]
[399846999,1766735445126,-1000.0,0.00041999,30]
[399847000,1766735445137,-1000.0,0.00041999,30]
[399847001,1766735445147,-330.1672502,0.00042,120]
[399847002,1766735445159,-162366.33846639,0.00042,120]
[399847003,1766735445169,-300.0,0.00042082,120]
[399847004,1766735445179,-300.0,0.00042082,120]
[399847005,1766735445190,-300.0,0.00042082,120]
[399847006,1766735445200,-300.0,0.00042082,120]
[399847007,1766735445210,-300.0,0.00042082,120]
[399847008,1766735445220,-300.0,0.00042082,120]
[399847009,1766735445230,-300.0,0.00042082,120]
[399847010,1766735445241,-300.0,0.00042082,120]
[399847011,1766735445251,-300.0,0.00042082,120]
[399847012,1766735445261,-300.0,0.00042082,120]
[399847013,1766735445272,-554.37,0.00042082,30]
[399847015,1766735445282,-554.37,0.00042082,30]
[399847016,1766735445292,-554.37,0.00042082,30]
[399847017,1766735445303,-300.0,0.00042082,30]
[399847018,1766735445313,-1000.0,0.00042099,3]
[399847019,1766735445323,-300.0,0.0004211,120]
[399847020,1766735445334,-300.0,0.0004211,120]
[399847022,1766735445344,-300.0,0.0004211,120]
[399847024,1766735445354,-300.0,0.0004211,120]
[399847026,1766735445364,-300.0,0.0004211,120]
[399847028,1766735445374,-300.0,0.0004211,120]
[399847030,1766735445384,-300.0,0.0004211,120]
[399847033,1766735445394,-300.0,0.0004211,120]
[399847035,1766735445405,-300.0,0.0004211,120]
[399847037,1766735445417,-300.0,0.0004211,120]
[399847039,1766735445428,-300.0,0.00042137,120]
[399847041,1766735445438,-300.0,0.00042137,120]
[399847043,1766735445449,-300.0,0.00042137,120]
[399847045,1766735445459,-300.0,0.00042137,120]
[399847047,1766735445470,-300.0,0.00042137,120]
[399847049,1766735445480,-150.0,0.00042151,30]
[399847051,1766735445491,-151.67792003,0.00042158,2]
[399847053,1766735445500,-505.85873594,0.00042158,2]
[399847055,1766735445510,-2138.31,0.00042191,120]
[399847057,1766735445521,-1000.0,0.00042199,2]
[399847058,1766735445531,-293.0,0.000422,7]
[399847059,1766735445541,-1350.2,0.00042239,7]
[399847061,1766735445551,-150.0,0.00042308,30]
[399847063,1766735445562,-1000.0,0.00042309,30]
[399847065,1766735445572,-16448.50078135,0.00042369,2]
[399847067,1766735445583,-4520.75561337,0.00042369,15]
[399847069,1766735445593,-10000.0,0.00042369,2]
[399847071,1766735445603,-1299.05771041,0.00042376,15]
[399847073,1766735445613,-197.07566843,0.00042385,2]
[399847075,1766735445623,-152.38183365,0.00042385,2]
[399847078,1766735445633,-152.38183362,0.00042424,2]
[399847079,1766735445644,-674.51,0.00042448,120]
[399847081,1766735445654,-251.34,0.00042448,120]
[399847083,1766735445664,-150.0,0.00042458,60]
[399847085,1766735445674,-150.0,0.00042458,2]
[399847087,1766735445684,-152.38183362,0.00042463,2]
[399847089,1766735445695,-159.10512061,0.00042466,30]
[399847091,1766735445711,-155.15685309,0.00042466,30]
[399847094,1766735445738,-157.38311085,0.00042466,30]
[399847096,1766735445762,-162.26054214,0.00042466,30]
[399847097,1766735445773,-156.76302164,0.00042466,30]
[399847099,1766735445783,-155.98355596,0.00042466,30]
[399847101,1766735445794,-151.77304176,0.00042466,30]
[399847104,1766735445812,-152.57737944,0.00042466,30]
[399847106,1766735445823,-155.05161452,0.00042466,30]
[399847108,1766735445834,-16448.50078134,0.00042474,2]
[399847110,1766735445844,-1848047.17476663,0.00042485,30]
[399847138,1766735532943,500.0,0.000119,2]
[399847144,1766735655118,499.51037342,0.000119,2]
[399847145,1766735682776,167.58,0.00011367,2]
[399847148,1766736148669,346.1,6.78e-05,2]
[399847149,1766736148862,346.1,7.137e-05,2]
[399847150,1766736149070,346.1,7.493e-05,2]
[399847151,1766736149256,346.1,7.85e-05,2]
[399847152,1766736149456,346.1,8.207e-05,2]
[399847153,1766736149663,346.1,8.564e-05,2]
[399847154,1766736150094,346.1,8.921e-05,2]
[399847155,1766736150301,346.1,9.278e-05,2]
[399847156,1766736150493,346.1,9.634e-05,2]
[399847157,1766736151494,346.1,9.991e-05,2]
[399847158,1766736151658,346.1,0.00010348,2]
[399847159,1766736152074,346.1,0.00010705,2]
[399847160,1766736152277,346.1,0.00011062,2]
[399847161,1766736152483,346.1,0.00011418,2]
[399847162,1766736152674,346.1,0.00011775,2]
[399847163,1766736162925,567.0,0.00030137,120]
[399847166,1766736337698,-346.1,0.00012132,2]
[399847167,1766736337724,-95.28509042,0.00012311,2]
[399847179,1766736631899,-250.0,0.000124,2]
[399847181,1766736631910,-251.00324206,0.00012489,2]
[399847194,1766736632024,-95.09675794,0.00012489,2]
[399847196,1766736632035,-166.66,0.0001258,2]
[399847198,1766736632045,-500.0,0.00012591,2]
[399847200,1766736632055,-43.42919844,0.00012702,2]
[399847202,1766736632068,-156.57080156,0.00012702,2]
[399847204,1766736632078,-166.66,0.00012844,2]
[399847206,1766736632088,-346.1,0.00012846,2]
[399847208,1766736632098,-166.66,0.00013109,2]
[399847210,1766736632109,-346.1,0.00013203,2]
[399847212,1766736632120,-4057.01190086,0.00013258,2]
[399847214,1766736632131,-500.0,0.00013356,2]
[399847216,1766736632141,-379.1535802,0.00013356,2]
[399847218,1766736632150,-500.0,0.00013356,2]
[399847220,1766736632160,-500.0,0.00013356,2]
[399847222,1766736632170,-236.56585209,0.00013356,2]
[399847223,1766736632180,-500.0,0.00013356,2]
[399847225,1766736632191,-500.0,0.00013356,2]
[399847227,1766736632201,-500.0,0.00013356,2]
[399847229,1766736632211,-500.0,0.00013356,2]
[399847230,1766736632221,-500.0,0.00013356,2]
[399847231,1766736632237,-500.0,0.00013356,2]
[399847232,1766736632248,-500.0,0.00013356,2]
[399847233,1766736632259,-532.30271839,0.00013356,2]
[399847234,1766736632269,-1200.0,0.00013356,2]
[399847235,1766736632279,-150.0,0.00013356,2]
[399847236,1766736632290,-1200.0,0.00013356,2]
[399847237,1766736632300,-300.0,0.00013356,2]
[399847238,1766736632310,-300.0,0.00013356,2]
[399847239,1766736632321,-500.0,0.00013357,2]
[399847240,1766736632331,-9999.99,0.00013358,2]
[399847241,1766736632341,-499.99,0.00013358,2]
[399847242,1766736632350,-5454.65,0.00013358,2]
[399847243,1766736632360,-785.1,0.00013358,2]
[399847244,1766736632370,-9999.99,0.00013358,2]
[399847245,1766736632380,-150.99,0.00013358,2]
[399847246,1766736632390,-999.99,0.00013358,2]
[399847247,1766736632400,-153.2,0.00013358,2]
[399847248,1766736632410,-150.99,0.00013358,2]
[399847249,1766736632421,-9999.99,0.00013358,2]
[399847250,1766736632431,-10308.54389903,0.00013358,2]
[399847251,1766736632498,-500.0,0.00013356,2]
[399847252,1766736632508,-47.77308168,0.00013358,2]
[399847253,1766736632591,-500.0,0.00013356,2]
[399847254,1766736632603,-500.0,0.00013356,2]
[399847262,1766736637626,-500.0,0.00013356,2]